[Event "Reykjavik Open 2025"]
[Site "Reykjavik, Iceland"]
[Date "2025.04.10"]
[Round "3.3"]
[White "Lu, Shanglei"]
[Black "Yankelevich, Lev"]
[Result "1/2-1/2"]
[ECO "C43"]
[WhiteElo "2618"]
[BlackElo "2413"]
[PlyCount "56"]
[EventDate "2025.??.??"]
[TimeControl "90+30"]
[WhiteClock "0:10:32"]
[BlackClock "0:06:38"]

1. e4 {[%emt 0:00:00]} e5 {[%emt 0:00:00]} 2. Nf3 {[%emt 0:00:00]} Nf6 {
[%emt 0:00:00]} 3. d4 {[%emt 0:00:00]} Nxe4 {[%emt 0:00:00]} 4. Bd3 {[%emt 0:
00:00]} d5 {[%emt 0:00:00]} 5. Nxe5 {[%emt 0:00:00]} Nd7 {[%emt 0:00:00]} 6.
Nxd7 {[%emt 0:00:00]} Bxd7 {[%emt 0:00:00]} 7. O-O {[%emt 0:00:00]} Bd6 {
[%emt 0:00:00]} 8. Nc3 {[%emt 0:00:00]} Nxc3 {[%emt 0:00:00]} 9. bxc3 {[%emt 0:
00:00]} O-O {[%emt 0:00:00]} 10. Qh5 {[%emt 0:00:00]} f5 {[%emt 0:00:00]} 11.
Bg5 {[%emt 0:00:00]} Qe8 {[%emt 0:00:00]} 12. Qf3 {[%emt 0:00:00]} c6 {[%emt 0:
00:00]} 13. Rfe1 {[%emt 0:00:00]} Qb8 {[%emt 0:00:00]} 14. h3 {[%emt 0:00:00]}
b5 {[%emt 0:00:00]} 15. a4 {[%emt 0:00:00]} a6 {[%emt 0:00:00]} 16. Be7 {
[%emt 0:00:00]} Re8 {[%emt 0:00:00]} 17. Bxd6 {[%emt 0:00:00]} Qxd6 {[%emt 0:
00:00]} 18. axb5 {[%emt 0:00:00]} Rxe1+ {[%emt 0:00:00]} 19. Rxe1 {[%emt 0:00:
00]} axb5 {[%emt 0:00:00]} 20. Re5 {[%emt 0:00:00]} Rf8 {[%emt 0:00:00]} 21. h4
{[%emt 0:00:00]} Qa3 {[%emt 0:00:00]} 22. Qf4 {[%emt 0:00:00]} Rf7 {[%emt 0:00:
00]} 23. Qg5 {[%emt 0:00:00]} h6 {[%emt 0:00:00]} 24. Qd8+ {[%emt 0:00:00]} Qf8
{[%emt 0:00:00]} 25. Qc7 {[%emt 0:00:00]} h5 {[%emt 0:03:48]} 26. Kh2 {[%emt 0:
00:00]} g6 {[%emt 0:01:46]} 27. Re3 {[%emt 0:04:03]} Re7 {[%emt 0:01:10]} 28.
Qd6 {[%emt 0:00:55]} Kf7 {[%emt 0:02:08]} 1/2-1/2

[Event "Reykjavik Open 2025"]
[Site "Reykjavik, Iceland"]
[Date "2025.04.10"]
[Round "3.4"]
[White "Ivanchuk, Vasyl"]
[Black "Kirk, Ezra"]
[Result "1-0"]
[ECO "E95"]
[WhiteElo "2604"]
[BlackElo "2394"]
[PlyCount "57"]
[EventDate "2025.??.??"]
[TimeControl "90+30"]
[WhiteClock "0:02:19"]
[BlackClock "0:01:04"]

1. d4 {[%emt 0:00:00]} Nf6 {[%emt 0:00:00]} 2. c4 {[%emt 0:00:00]} g6 {[%emt 0:
00:00]} 3. Nc3 {[%emt 0:00:00]} Bg7 {[%emt 0:00:00]} 4. e4 {[%emt 0:00:00]} d6
{[%emt 0:00:00]} 5. Be2 {[%emt 0:00:00]} O-O {[%emt 0:00:00]} 6. Nf3 {[%emt 0:
00:00]} Nbd7 {[%emt 0:00:00]} 7. O-O {[%emt 0:00:00]} e5 {[%emt 0:00:00]} 8.
Re1 {[%emt 0:00:00]} Qe7 {[%emt 0:00:00]} 9. Bf1 {[%emt 0:00:00]} h6 {[%emt 0:
00:00]} 10. Rb1 {[%emt 0:00:00]} c6 {[%emt 0:00:00]} 11. a3 {[%emt 0:00:00]}
Re8 {[%emt 0:00:00]} 12. d5 {[%emt 0:00:00]} c5 {[%emt 0:00:00]} 13. b4 {
[%emt 0:00:00]} b6 {[%emt 0:00:00]} 14. Qa4 {[%emt 0:00:00]} Nf8 {[%emt 0:00:
00]} 15. bxc5 {[%emt 0:00:00]} bxc5 {[%emt 0:00:00]} 16. Qa5 {[%emt 0:00:00]}
Rd8 {[%emt 0:00:00]} 17. Be2 {[%emt 0:00:00]} Nh5 {[%emt 0:00:00]} 18. g3 {
[%emt 0:00:00]} f5 {[%emt 0:00:00]} 19. exf5 {[%emt 0:00:00]} gxf5 {[%emt 0:00:
00]} 20. Nxe5 {[%emt 0:00:04]} Qxe5 {[%emt 0:00:00]} 21. Bb2 {[%emt 0:08:26]}
Re8 {[%emt 0:04:29]} 22. Bxh5 {[%emt 0:00:54]} Qxe1+ {[%emt 0:00:05]} 23. Rxe1
{[%emt 0:00:02]} Rxe1+ {[%emt 0:00:07]} 24. Kg2 {[%emt 0:00:01]} Re7 {[%emt 0:
04:14]} 25. Bc1 {[%emt 0:00:02]} Rd7 {[%emt 0:03:46]} 26. Bf4 {[%emt 0:02:05]}
Ba6 {[%emt 0:01:05]} 27. Qxa6 {[%emt 0:00:42]} Bxc3 {[%emt 0:00:08]} 28. Bxd6 {
[%emt 0:00:22]} Bd4 {[%emt 0:00:32]} 29. Bf4 {[%emt 0:01:03]} 1-0

[Event "Reykjavik Open 2025"]
[Site "Reykjavik, Iceland"]
[Date "2025.04.10"]
[Round "3.5"]
[White "Lu, Miaoyi"]
[Black "Banusz, Tamas"]
[Result "1/2-1/2"]
[ECO "B33"]
[WhiteElo "2429"]
[BlackElo "2592"]
[PlyCount "101"]
[EventDate "2025.??.??"]
[TimeControl "90+30"]
[WhiteClock "0:08:58"]
[BlackClock "0:23:56"]

1. e4 {[%emt 0:00:00]} c5 {[%emt 0:00:00]} 2. Nf3 {[%emt 0:00:00]} Nc6 {
[%emt 0:00:00]} 3. d4 {[%emt 0:00:00]} cxd4 {[%emt 0:00:00]} 4. Nxd4 {[%emt 0:
00:00]} Nf6 {[%emt 0:00:00]} 5. Nc3 {[%emt 0:00:00]} e5 {[%emt 0:00:00]} 6.
Ndb5 {[%emt 0:00:00]} d6 {[%emt 0:00:00]} 7. Nd5 {[%emt 0:00:00]} Nxd5 {
[%emt 0:00:00]} 8. exd5 {[%emt 0:00:00]} Nb8 {[%emt 0:00:00]} 9. Qd3 {[%emt 0:
00:00]} a6 {[%emt 0:00:00]} 10. Qa3 {[%emt 0:00:00]} Be7 {[%emt 0:00:00]} 11.
Bg5 {[%emt 0:00:00]} f6 {[%emt 0:00:00]} 12. Bd2 {[%emt 0:00:00]} O-O {[%emt 0:
00:00]} 13. Bb4 {[%emt 0:00:00]} axb5 {[%emt 0:00:00]} 14. Qxa8 {[%emt 0:00:00]
} Na6 {[%emt 0:00:00]} 15. Bd2 {[%emt 0:00:00]} Qc7 {[%emt 0:00:00]} 16. c3 {
[%emt 0:00:00]} Qc5 {[%emt 0:00:00]} 17. Be3 {[%emt 0:00:00]} Qxd5 {[%emt 0:00:
00]} 18. Qa7 {[%emt 0:00:00]} f5 {[%emt 0:00:00]} 19. f3 {[%emt 0:00:00]} Bh4+
{[%emt 0:00:00]} 20. Bf2 {[%emt 0:00:00]} Bg5 {[%emt 0:00:00]} 21. Rd1 {
[%emt 0:00:00]} Qxa2 {[%emt 0:00:00]} 22. Bxb5 {[%emt 0:00:00]} Qxb2 {[%emt 0:
00:00]} 23. Bc4+ {[%emt 0:00:00]} Kh8 {[%emt 0:00:00]} 24. O-O {[%emt 0:00:00]}
Qxc3 {[%emt 0:00:00]} 25. Bxa6 {[%emt 0:00:00]} bxa6 {[%emt 0:00:00]} 26. Rxd6
{[%emt 0:00:00]} Rg8 {[%emt 0:00:00]} 27. Rfd1 {[%emt 0:00:00]} Qc4 {[%emt 0:
00:00]} 28. Be3 {[%emt 0:00:00]} f4 {[%emt 0:00:00]} 29. Bb6 {[%emt 0:00:00]}
h6 {[%emt 0:00:00]} 30. Qc7 {[%emt 0:00:00]} Qb3 {[%emt 0:02:30]} 31. R6d3 {
[%emt 0:00:00]} Qe6 {[%emt 0:00:19]} 32. Re1 {[%emt 0:00:00]} Qg6 {[%emt 0:02:
30]} 33. Rdd1 {[%emt 0:02:34]} Bf6 {[%emt 0:00:55]} 34. Kh1 {[%emt 0:06:52]}
Bf5 {[%emt 0:00:45]} 35. Qb7 {[%emt 0:00:11]} Re8 {[%emt 0:02:47]} 36. Bc7 {
[%emt 0:02:29]} Kh7 {[%emt 0:02:04]} 37. Qxa6 {[%emt 0:03:29]} e4 {[%emt 0:00:
01]} 38. Bxf4 {[%emt 0:00:56]} exf3 {[%emt 0:00:16]} 39. gxf3 {[%emt 0:00:05]}
Bd3 {[%emt 0:04:28]} 40. Qa2 {[%emt 0:03:48]} Rxe1+ {[%emt 0:02:27]} 41. Rxe1 {
[%emt 0:00:02]} Qf5 {[%emt 0:00:54]} 42. Qd2 {[%emt 0:00:00]} g5 {[%emt 0:00:
00]} 43. Re3 {[%emt 0:00:00]} Bb5 {[%emt 0:00:00]} 44. Bg3 {[%emt 0:00:00]} g4
{[%emt 0:00:00]} 45. Qd1 {[%emt 0:00:00]} gxf3 {[%emt 0:00:00]} 46. Kg1 {
[%emt 0:00:00]} Be2 {[%emt 0:00:00]} 47. Rxe2 {[%emt 0:00:00]} fxe2 {[%emt 0:
00:00]} 48. Qxe2 {[%emt 0:00:00]} Bd4+ {[%emt 0:00:00]} 49. Bf2 {[%emt 0:00:00]
} Qxf2+ {[%emt 0:00:00]} 50. Qxf2 {[%emt 0:00:00]} Bxf2+ {[%emt 0:00:00]} 51.
Kxf2 {[%emt 0:00:00]} 1/2-1/2

[Event "Reykjavik Open 2025"]
[Site "Reykjavik, Iceland"]
[Date "2025.04.10"]
[Round "3.6"]
[White "Muradli, Mahammad"]
[Black "Willems, Niels"]
[Result "1-0"]
[ECO "A34"]
[WhiteElo "2588"]
[BlackElo "2394"]
[PlyCount "103"]
[EventDate "2025.??.??"]
[TimeControl "90+30"]
[WhiteClock "0:37:03"]
[BlackClock "0:01:12"]

1. Nf3 {[%emt 0:00:00]} Nf6 {[%emt 0:00:00]} 2. c4 {[%emt 0:00:00]} c5 {
[%emt 0:00:00]} 3. Nc3 {[%emt 0:00:00]} Nc6 {[%emt 0:00:00]} 4. g3 {[%emt 0:00:
00]} d5 {[%emt 0:00:00]} 5. d4 {[%emt 0:00:00]} cxd4 {[%emt 0:00:00]} 6. Nxd4 {
[%emt 0:00:00]} dxc4 {[%emt 0:00:00]} 7. Nxc6 {[%emt 0:00:00]} Qxd1+ {[%emt 0:
00:00]} 8. Nxd1 {[%emt 0:00:00]} bxc6 {[%emt 0:00:00]} 9. Bg2 {[%emt 0:00:00]}
Nd5 {[%emt 0:00:00]} 10. Ne3 {[%emt 0:00:00]} e6 {[%emt 0:00:00]} 11. Nxc4 {
[%emt 0:00:00]} Ba6 {[%emt 0:00:00]} 12. Na5 {[%emt 0:00:00]} Rc8 {[%emt 0:00:
00]} 13. Bd2 {[%emt 0:00:00]} Be7 {[%emt 0:00:00]} 14. Rc1 {[%emt 0:00:00]} c5
{[%emt 0:00:00]} 15. b3 {[%emt 0:00:00]} O-O {[%emt 0:00:00]} 16. O-O {[%emt 0:
00:00]} Rfd8 {[%emt 0:00:00]} 17. Bf3 {[%emt 0:00:00]} Bf6 {[%emt 0:00:00]} 18.
Rfd1 {[%emt 0:00:00]} Bb2 {[%emt 0:00:00]} 19. Rc2 {[%emt 0:00:00]} Ba3 {
[%emt 0:00:00]} 20. Be1 {[%emt 0:00:00]} Nb6 {[%emt 0:00:00]} 21. Rxd8+ {
[%emt 0:00:00]} Rxd8 {[%emt 0:00:00]} 22. Bd2 {[%emt 0:00:00]} Rd7 {[%emt 0:00:
00]} 23. Nc6 {[%emt 0:00:00]} Bb5 {[%emt 0:00:00]} 24. Be3 {[%emt 0:00:00]}
Bxc6 {[%emt 0:00:00]} 25. Bxc6 {[%emt 0:00:00]} Rc7 {[%emt 0:00:00]} 26. Rd2 {
[%emt 0:00:00]} Kf8 {[%emt 0:00:00]} 27. Rd8+ {[%emt 0:00:00]} Ke7 {[%emt 0:00:
00]} 28. Re8+ {[%emt 0:00:00]} Kf6 {[%emt 0:00:00]} 29. Be4 {[%emt 0:00:00]}
Nd5 {[%emt 0:00:00]} 30. Bxd5 {[%emt 0:00:00]} exd5 {[%emt 0:00:00]} 31. Bf4 {
[%emt 0:00:00]} Rc6 {[%emt 0:00:00]} 32. Rd8 {[%emt 0:01:51]} c4 {[%emt 0:00:
00]} 33. Rxd5 {[%emt 0:00:50]} c3 {[%emt 0:00:00]} 34. Ra5 {[%emt 0:00:08]} Bb2
{[%emt 0:00:00]} 35. Be5+ {[%emt 0:00:11]} Ke6 {[%emt 0:00:00]} 36. Bxg7 {
[%emt 0:00:32]} f6 {[%emt 0:00:00]} 37. Rxa7 {[%emt 0:03:07]} Bc1 {[%emt 0:00:
00]} 38. Bf8 {[%emt 0:00:14]} f5 {[%emt 0:00:00]} 39. Rxh7 {[%emt 0:02:24]} c2
{[%emt 0:00:00]} 40. Kg2 {[%emt 0:02:41]} Rc8 {[%emt 0:19:18]} 41. Bb4 {
[%emt 0:01:04]} Bg5 {[%emt 0:00:00]} 42. Ba3 {[%emt 0:00:00]} f4 {[%emt 0:00:
00]} 43. h4 {[%emt 0:00:00]} Bd8 {[%emt 0:00:00]} 44. Bc1 {[%emt 0:00:00]} fxg3
{[%emt 0:00:00]} 45. fxg3 {[%emt 0:00:00]} Ra8 {[%emt 0:00:00]} 46. a4 {
[%emt 0:00:00]} Ba5 {[%emt 0:02:45]} 47. Rh5 {[%emt 0:00:00]} Bb4 {[%emt 0:00:
41]} 48. Rg5 {[%emt 0:00:00]} Rb8 {[%emt 0:01:25]} 49. Rb5 {[%emt 0:00:00]}
Rxb5 {[%emt 0:00:21]} 50. axb5 {[%emt 0:00:00]} Kd5 {[%emt 0:00:12]} 51. h5 {
[%emt 0:00:00]} Kc5 {[%emt 0:01:06]} 52. Kf3 {[%emt 0:00:00]} 1-0

[Event "Reykjavik Open 2025"]
[Site "Reykjavik, Iceland"]
[Date "2025.04.10"]
[Round "3.7"]
[White "Terrieux, Kevin"]
[Black "Gupta, Abhijeet"]
[Result "0-1"]
[ECO "B51"]
[WhiteElo "2394"]
[BlackElo "2576"]
[PlyCount "108"]
[EventDate "2025.??.??"]
[TimeControl "90+30"]
[WhiteClock "0:00:52"]
[BlackClock "0:31:11"]

1. e4 {[%emt 0:00:00]} c5 {[%emt 0:00:00]} 2. Nf3 {[%emt 0:00:00]} d6 {[%emt 0:
00:00]} 3. Bb5+ {[%emt 0:00:00]} Nd7 {[%emt 0:00:00]} 4. d4 {[%emt 0:00:00]}
cxd4 {[%emt 0:00:00]} 5. Qxd4 {[%emt 0:00:00]} a6 {[%emt 0:00:00]} 6. Be2 {
[%emt 0:00:00]} Ngf6 {[%emt 0:00:00]} 7. O-O {[%emt 0:00:00]} e6 {[%emt 0:00:
00]} 8. c4 {[%emt 0:00:00]} b6 {[%emt 0:00:00]} 9. Nc3 {[%emt 0:00:00]} Bb7 {
[%emt 0:00:00]} 10. Rd1 {[%emt 0:00:00]} Be7 {[%emt 0:00:00]} 11. b3 {[%emt 0:
00:00]} O-O {[%emt 0:00:00]} 12. Ba3 {[%emt 0:00:00]} Nc5 {[%emt 0:00:00]} 13.
e5 {[%emt 0:00:00]} dxe5 {[%emt 0:00:00]} 14. Qxe5 {[%emt 0:00:00]} Qc8 {
[%emt 0:00:00]} 15. Bb2 {[%emt 0:00:00]} Ncd7 {[%emt 0:00:00]} 16. Qf4 {
[%emt 0:00:00]} Qc6 {[%emt 0:00:00]} 17. Ne1 {[%emt 0:00:00]} e5 {[%emt 0:00:
00]} 18. Qf5 {[%emt 0:00:00]} g6 {[%emt 0:00:00]} 19. Qh3 {[%emt 0:00:00]} Rad8
{[%emt 0:00:00]} 20. Nf3 {[%emt 0:00:00]} Qc8 {[%emt 0:00:00]} 21. Ng5 {
[%emt 0:00:00]} Nc5 {[%emt 0:00:00]} 22. Qxc8 {[%emt 0:00:00]} Bxc8 {[%emt 0:
00:00]} 23. b4 {[%emt 0:00:00]} Ne6 {[%emt 0:00:00]} 24. Nxe6 {[%emt 0:00:00]}
Bxe6 {[%emt 0:00:00]} 25. a3 {[%emt 0:00:00]} a5 {[%emt 0:00:00]} 26. Nb5 {
[%emt 0:00:00]} axb4 {[%emt 0:00:00]} 27. axb4 {[%emt 0:00:00]} Rxd1+ {[%emt 0:
00:00]} 28. Rxd1 {[%emt 0:00:00]} Bxb4 {[%emt 0:00:00]} 29. Bxe5 {[%emt 0:00:
00]} Nd7 {[%emt 0:00:00]} 30. Bd4 {[%emt 0:00:00]} Rc8 {[%emt 0:00:00]} 31. f3
{[%emt 0:04:57]} Bc5 {[%emt 0:00:00]} 32. Bxc5 {[%emt 0:04:09]} Rxc5 {[%emt 0:
00:00]} 33. Nd6 {[%emt 0:01:59]} Kf8 {[%emt 0:00:00]} 34. Ne4 {[%emt 0:03:11]}
Ra5 {[%emt 0:00:00]} 35. f4 {[%emt 0:02:20]} h6 {[%emt 0:00:00]} 36. Rd2 {
[%emt 0:01:51]} Ke7 {[%emt 0:00:00]} 37. Kf2 {[%emt 0:00:08]} Ra3 {[%emt 0:00:
00]} 38. Rd3 {[%emt 0:01:20]} Ra4 {[%emt 0:00:00]} 39. Re3 {[%emt 0:00:29]} Ra2
{[%emt 0:00:00]} 40. Nc3 {[%emt 0:00:21]} Rb2 {[%emt 0:00:07]} 41. Nb5 {
[%emt 0:00:00]} Kd8 {[%emt 0:00:00]} 42. Kf3 {[%emt 0:00:00]} Nc5 {[%emt 0:00:
00]} 43. g4 {[%emt 0:00:00]} Rd2 {[%emt 0:00:00]} 44. h3 {[%emt 0:00:00]} f5 {
[%emt 0:00:00]} 45. g5 {[%emt 0:00:00]} h5 {[%emt 0:00:00]} 46. Rc3 {[%emt 0:
00:00]} h4 {[%emt 0:00:00]} 47. Ke3 {[%emt 0:00:00]} Ra2 {[%emt 0:00:00]} 48.
Rc1 {[%emt 0:00:00]} Bd7 {[%emt 0:00:00]} 49. Bf3 {[%emt 0:04:01]} Rh2 {
[%emt 0:00:00]} 50. Rh1 {[%emt 0:00:45]} Rc2 {[%emt 0:00:00]} 51. Kd4 {[%emt 0:
00:26]} Rd2+ {[%emt 0:00:00]} 52. Ke5 {[%emt 0:00:24]} Bxb5 {[%emt 0:00:00]}
53. cxb5 {[%emt 0:00:11]} Ke7 {[%emt 0:00:00]} 54. Bc6 {[%emt 0:01:06]} Rd6 {
[%emt 0:00:00]} 0-1

[Event "Reykjavik Open 2025"]
[Site "Reykjavik, Iceland"]
[Date "2025.04.10"]
[Round "3.8"]
[White "Jacobson, Brandon"]
[Black "Heimisson, Hilmir Freyr"]
[Result "1-0"]
[ECO "A20"]
[WhiteElo "2570"]
[BlackElo "2376"]
[PlyCount "203"]
[EventDate "2025.??.??"]
[TimeControl "90+30"]
[WhiteClock "0:02:14"]
[BlackClock "0:01:41"]

1. c4 {[%emt 0:00:00]} e5 {[%emt 0:00:00]} 2. g3 {[%emt 0:00:00]} Nf6 {[%emt 0:
00:00]} 3. Bg2 {[%emt 0:00:00]} c6 {[%emt 0:00:00]} 4. d4 {[%emt 0:00:00]} e4 {
[%emt 0:00:00]} 5. Bg5 {[%emt 0:00:00]} Bb4+ {[%emt 0:00:00]} 6. Nc3 {[%emt 0:
00:00]} O-O {[%emt 0:00:00]} 7. Bxe4 {[%emt 0:00:00]} h6 {[%emt 0:00:00]} 8.
Bxf6 {[%emt 0:00:00]} Qxf6 {[%emt 0:00:00]} 9. e3 {[%emt 0:00:00]} d6 {[%emt 0:
00:00]} 10. Nge2 {[%emt 0:00:00]} Re8 {[%emt 0:00:00]} 11. Bg2 {[%emt 0:00:00]}
Bg4 {[%emt 0:00:00]} 12. O-O {[%emt 0:00:00]} Bxc3 {[%emt 0:00:00]} 13. bxc3 {
[%emt 0:00:00]} Nd7 {[%emt 0:00:00]} 14. f3 {[%emt 0:00:00]} Be6 {[%emt 0:00:
00]} 15. d5 {[%emt 0:00:00]} Bf5 {[%emt 0:00:00]} 16. e4 {[%emt 0:00:00]} Bh7 {
[%emt 0:00:00]} 17. Rb1 {[%emt 0:00:00]} Nb6 {[%emt 0:00:00]} 18. Qb3 {[%emt 0:
00:00]} Rac8 {[%emt 0:00:55]} 19. Bh3 {[%emt 0:00:00]} Rc7 {[%emt 0:01:01]} 20.
Nd4 {[%emt 0:00:00]} cxd5 {[%emt 0:03:11]} 21. cxd5 {[%emt 0:00:00]} Nc4 {
[%emt 0:01:05]} 22. Rf2 {[%emt 0:00:00]} a6 {[%emt 0:00:06]} 23. Bf1 {[%emt 0:
00:00]} Ne5 {[%emt 0:00:10]} 24. Qa3 {[%emt 0:00:00]} Nd7 {[%emt 0:02:20]} 25.
Qa5 {[%emt 0:00:00]} Qd8 {[%emt 0:01:41]} 26. Rfb2 {[%emt 0:00:00]} Nc5 {
[%emt 0:00:07]} 27. Nb3 {[%emt 0:00:00]} Nd7 {[%emt 0:00:18]} 28. Nd2 {[%emt 0:
00:00]} Qb8 {[%emt 0:01:53]} 29. Nc4 {[%emt 0:00:00]} Qa7+ {[%emt 0:02:33]} 30.
Kh1 {[%emt 0:00:00]} Rxc4 {[%emt 0:00:34]} 31. Bxc4 {[%emt 0:00:00]} Qe3 {
[%emt 0:00:11]} 32. Rf1 {[%emt 0:02:22]} Bxe4 {[%emt 0:00:45]} 33. Be2 {
[%emt 0:00:01]} Bf5 {[%emt 0:00:30]} 34. g4 {[%emt 0:00:15]} Bd3 {[%emt 0:00:
28]} 35. Bxd3 {[%emt 0:02:04]} Qxd3 {[%emt 0:00:01]} 36. Rbf2 {[%emt 0:00:05]}
Nc5 {[%emt 0:00:37]} 37. Qb4 {[%emt 0:01:02]} Qxd5 {[%emt 0:00:14]} 38. Qd4 {
[%emt 0:00:02]} Qc6 {[%emt 0:00:19]} 39. c4 {[%emt 0:01:19]} Re6 {[%emt 0:00:
37]} 40. h3 {[%emt 0:02:31]} Qe8 {[%emt 0:00:50]} 41. Kg2 {[%emt 0:03:18]} Qe7
{[%emt 0:00:00]} 42. Rd1 {[%emt 0:00:00]} Rf6 {[%emt 0:00:00]} 43. Kh2 {
[%emt 0:00:00]} Re6 {[%emt 0:00:00]} 44. Rdd2 {[%emt 0:00:00]} Nd7 {[%emt 0:00:
00]} 45. Kg2 {[%emt 0:00:00]} Nc5 {[%emt 0:00:00]} 46. Qd5 {[%emt 0:00:00]} Qe8
{[%emt 0:00:00]} 47. Qd4 {[%emt 0:00:00]} Qe7 {[%emt 0:00:00]} 48. Qf4 {
[%emt 0:00:00]} Re5 {[%emt 0:00:00]} 49. Rd1 {[%emt 0:00:00]} Re6 {[%emt 0:00:
00]} 50. Rd4 {[%emt 0:00:00]} Re5 {[%emt 0:00:00]} 51. Qd2 {[%emt 0:00:00]} Re6
{[%emt 0:00:00]} 52. Rd5 {[%emt 0:00:00]} Nd7 {[%emt 0:00:00]} 53. Kh2 {
[%emt 0:00:00]} Ne5 {[%emt 0:02:20]} 54. Qd4 {[%emt 0:00:00]} Qc7 {[%emt 0:00:
38]} 55. f4 {[%emt 0:06:13]} Nxc4 {[%emt 0:00:17]} 56. g5 {[%emt 0:00:02]} h5 {
[%emt 0:04:40]} 57. f5 {[%emt 0:07:24]} Re8 {[%emt 0:00:06]} 58. Rc2 {[%emt 0:
00:23]} b5 {[%emt 0:00:20]} 59. g6 {[%emt 0:00:39]} Qe7 {[%emt 0:00:59]} 60. f6
{[%emt 0:00:57]} Qxf6 {[%emt 0:00:46]} 61. Qxf6 {[%emt 0:00:04]} gxf6 {[%emt 0:
00:01]} 62. gxf7+ {[%emt 0:00:06]} Kxf7 {[%emt 0:00:08]} 63. Rxh5 {[%emt 0:00:
11]} Ke6 {[%emt 0:01:05]} 64. Rh7 {[%emt 0:00:29]} Rc8 {[%emt 0:01:07]} 65. Ra7
{[%emt 0:00:19]} Rc6 {[%emt 0:00:22]} 66. h4 {[%emt 0:00:17]} d5 {[%emt 0:00:
37]} 67. Ra8 {[%emt 0:02:57]} Rd6 {[%emt 0:00:28]} 68. Re2+ {[%emt 0:01:53]}
Ne5 {[%emt 0:00:25]} 69. h5 {[%emt 0:00:29]} d4 {[%emt 0:00:26]} 70. h6 {
[%emt 0:00:03]} Rd7 {[%emt 0:00:23]} 71. Rxa6+ {[%emt 0:00:11]} Kf5 {[%emt 0:
00:28]} 72. Kg3 {[%emt 0:00:49]} d3 {[%emt 0:00:29]} 73. Rf2+ {[%emt 0:00:48]}
Ke4 {[%emt 0:00:09]} 74. Rf4+ {[%emt 0:00:33]} Ke3 {[%emt 0:00:51]} 75. Ra3 {
[%emt 0:00:02]} Rf7 {[%emt 0:00:49]} 76. Rb3 {[%emt 0:00:39]} Ke2 {[%emt 0:00:
37]} 77. Rf2+ {[%emt 0:00:11]} Ke3 {[%emt 0:00:07]} 78. Rxb5 {[%emt 0:00:31]}
Re7 {[%emt 0:00:44]} 79. Rxf6 {[%emt 0:01:04]} d2 {[%emt 0:00:29]} 80. Rd5 {
[%emt 0:00:09]} Nc4 {[%emt 0:00:36]} 81. Rf4 {[%emt 0:00:46]} Rc7 {[%emt 0:00:
33]} 82. Rd8 {[%emt 0:00:48]} Ne5 {[%emt 0:00:54]} 83. Rf5 {[%emt 0:00:23]} Re7
{[%emt 0:00:00]} 84. Rd5 {[%emt 0:00:26]} Nc4 {[%emt 0:00:24]} 85. Rf4 {
[%emt 0:00:03]} Ne5 {[%emt 0:00:27]} 86. Rf5 {[%emt 0:00:21]} Nc4 {[%emt 0:00:
22]} 87. Rd8 {[%emt 0:01:19]} Re6 {[%emt 0:00:43]} 88. h7 {[%emt 0:00:24]} Rh6
{[%emt 0:00:08]} 89. Rc5 {[%emt 0:00:27]} Rg6+ {[%emt 0:01:04]} 90. Kh4 {
[%emt 0:00:09]} Nd6 {[%emt 0:00:59]} 91. Rxd6 {[%emt 0:00:49]} Rxd6 {[%emt 0:
00:00]} 92. h8=Q {[%emt 0:00:06]} d1=Q {[%emt 0:00:00]} 93. Qe5+ {[%emt 0:00:
22]} Kf2 {[%emt 0:00:50]} 94. Qg3+ {[%emt 0:01:12]} Ke2 {[%emt 0:00:15]} 95.
Qh2+ {[%emt 0:00:27]} Ke3 {[%emt 0:00:30]} 96. Qe5+ {[%emt 0:00:04]} Kf2 {
[%emt 0:00:11]} 97. Qf4+ {[%emt 0:00:51]} Ke2 {[%emt 0:00:20]} 98. Re5+ {
[%emt 0:00:24]} Kd3 {[%emt 0:00:17]} 99. Qe3+ {[%emt 0:00:21]} Kc2 {[%emt 0:00:
20]} 100. Qb3+ {[%emt 0:00:04]} Kc1 {[%emt 0:01:05]} 101. Rc5+ {[%emt 0:00:05]}
Kd2 {[%emt 0:00:04]} 102. Rd5+ {[%emt 0:00:03]} 1-0

[Event "Reykjavik Open 2025"]
[Site "Reykjavik, Iceland"]
[Date "2025.04.10"]
[Round "3.9"]
[White "Thorfinnsson, Bjorn"]
[Black "Gorshtein, Ido"]
[Result "0-1"]
[ECO "A46"]
[WhiteElo "2386"]
[BlackElo "2557"]
[PlyCount "102"]
[EventDate "2025.??.??"]
[TimeControl "90+30"]
[WhiteClock "0:24:13"]
[BlackClock "0:04:54"]

1. d4 {[%emt 0:00:00]} Nf6 {[%emt 0:00:00]} 2. Nf3 {[%emt 0:00:00]} e6 {
[%emt 0:00:00]} 3. c3 {[%emt 0:00:00]} c5 {[%emt 0:00:00]} 4. Bg5 {[%emt 0:00:
00]} Qb6 {[%emt 0:00:00]} 5. Qb3 {[%emt 0:00:00]} Nc6 {[%emt 0:00:00]} 6. Qxb6
{[%emt 0:00:00]} axb6 {[%emt 0:00:00]} 7. e3 {[%emt 0:00:00]} d5 {[%emt 0:00:
00]} 8. Nbd2 {[%emt 0:00:00]} Bd7 {[%emt 0:00:00]} 9. a3 {[%emt 0:00:00]} Nh5 {
[%emt 0:00:00]} 10. Bh4 {[%emt 0:00:00]} h6 {[%emt 0:00:00]} 11. g4 {[%emt 0:
00:00]} Nf6 {[%emt 0:00:00]} 12. h3 {[%emt 0:00:00]} Bd6 {[%emt 0:00:00]} 13.
Rg1 {[%emt 0:00:00]} g5 {[%emt 0:00:00]} 14. Bg3 {[%emt 0:00:00]} Bxg3 {
[%emt 0:00:00]} 15. Rxg3 {[%emt 0:00:00]} Ke7 {[%emt 0:00:00]} 16. O-O-O {
[%emt 0:00:00]} cxd4 {[%emt 0:00:00]} 17. exd4 {[%emt 0:00:00]} Ne8 {[%emt 0:
00:00]} 18. Re1 {[%emt 0:00:00]} Nd6 {[%emt 0:00:00]} 19. h4 {[%emt 0:00:00]}
f6 {[%emt 0:00:00]} 20. Bd3 {[%emt 0:00:00]} Rhg8 {[%emt 0:00:00]} 21. hxg5 {
[%emt 0:00:00]} hxg5 {[%emt 0:00:00]} 22. Rh3 {[%emt 0:00:00]} Rh8 {[%emt 0:00:
00]} 23. Reh1 {[%emt 0:00:00]} Rxh3 {[%emt 0:00:00]} 24. Rxh3 {[%emt 0:00:00]}
Nd8 {[%emt 0:00:00]} 25. Nf1 {[%emt 0:00:00]} N8f7 {[%emt 0:00:00]} 26. Ne3 {
[%emt 0:00:00]} b5 {[%emt 0:00:00]} 27. Kc2 {[%emt 0:00:00]} Nc4 {[%emt 0:00:
00]} 28. Nxc4 {[%emt 0:00:00]} bxc4 {[%emt 0:00:00]} 29. Bg6 {[%emt 0:00:00]}
Be8 {[%emt 0:00:00]} 30. Kd2 {[%emt 0:00:00]} Kf8 {[%emt 0:00:00]} 31. Ne1 {
[%emt 0:00:00]} Kg7 {[%emt 0:00:00]} 32. Bc2 {[%emt 0:00:00]} Nh6 {[%emt 0:00:
00]} 33. Ng2 {[%emt 0:00:00]} Bg6 {[%emt 0:00:00]} 34. Ne3 {[%emt 0:00:00]} Nf7
{[%emt 0:00:00]} 35. Rh2 {[%emt 0:00:00]} Nd6 {[%emt 0:00:00]} 36. f3 {[%emt 0:
00:00]} Nf7 {[%emt 0:00:00]} 37. Rh3 {[%emt 0:00:00]} Bxc2 {[%emt 0:00:00]} 38.
Kxc2 {[%emt 0:00:00]} Nh8 {[%emt 0:00:00]} 39. Ng2 {[%emt 0:00:00]} Ng6 {
[%emt 0:00:00]} 40. Rh2 {[%emt 0:00:00]} Rf8 {[%emt 0:00:00]} 41. Rh5 {[%emt 0:
00:00]} Re8 {[%emt 0:00:00]} 42. Kd2 {[%emt 0:00:00]} Nf4 {[%emt 0:02:26]} 43.
Nxf4 {[%emt 0:00:00]} gxf4 {[%emt 0:00:52]} 44. Kc2 {[%emt 0:00:00]} Ra8 {
[%emt 0:06:24]} 45. Rh1 {[%emt 0:00:00]} b5 {[%emt 0:00:06]} 46. Rh2 {[%emt 0:
00:00]} Kg6 {[%emt 0:04:19]} 47. Kd2 {[%emt 0:00:00]} Ra7 {[%emt 0:01:36]} 48.
Kc2 {[%emt 0:00:43]} Rh7 {[%emt 0:03:39]} 49. Rxh7 {[%emt 0:01:53]} Kxh7 {
[%emt 0:00:45]} 50. b4 {[%emt 0:00:05]} cxb3+ {[%emt 0:00:05]} 51. Kxb3 {
[%emt 0:00:06]} Kg6 {[%emt 0:01:54]} 0-1